{"text_format":"1","workbook":"xlsx","n_sheets":11,"sheets":["MENU","INTEG","TCD","RedLine","TAB Frs","TAB SU","TAB CAts2","TAB CAts","TAB Contrats Fce","TAB Contrats","RedLineTCD"],"not_rendered":{"charts":0,"images":1,"macros":1,"external_links":0,"defined_names":10,"comments":1,"pivot_tables":1},"unopened":[],"bounds":{"document_bytes":16777216,"sheet_cells":100000,"rows_first":2000,"rows_last":500,"rows_between":2000,"halvings":0,"cell_chars":16384,"cell_head_chars":4096},"cells_cut":0,"cells_raw":0,"read":"whole","date_system":"1900"}

{"sheet":"MENU","index":0,"n_rows":0,"n_cols":0,"rows_kept":0,"cut":false,"hidden":false,"merged":[]}

{"sheet":"INTEG","index":1,"n_rows":98,"n_cols":21,"rows_kept":98,"cut":false,"hidden":false,"merged":[]}
["Code Frs","Nom Frs","N° SU","Code CODA","SPEND","SU-CFrs","Frs Groupe","Intragroupe","N°-Nom SU","Zone","Pays","Région","Pôle","N°-Nom Cats","N°-Nom Dom","N°-Nom /s Dom","Périmètre","Adressable","Contrat","Adressée","CCODA"]
["FREGION","REGION LR","SI066","C65130094366",10]
["FAMS","AIRPORT MARKETING SERVICES","SI066","C62310094305",20]
["F0001241","GROUPE EYSSAUTIER","SU4494","C61600094250",30]
["FSU501","TCAR","SU530","C61600094250",40]
["FNATIXISL","NATIXIS LEASE","SU4210","C217100X20",50]
["FOTOKAR","OTOKAR EUROPE","SU4210","C217100X20",60]
["FMPVIN","MIDI-PYRENEES VEHICULES INDUS NORD","SU4210","C217100X20",70]
["F0","Fournisseur reprise","SU446420","C217100X88",80]
["F0","Fournisseur reprise","SU446430","C217100X88",90]
["F0","Fournisseur reprise","SU446410","C217100X88",100]
["FK30","KEOLIS","DSP","C61131094049",110]
["FT20","TAXIS DE DUNKERQUE","DSP","C61131094049",120]
["FS7503","N'4 MOBILITES","S7214","C61131094004",130]
["FSU655","SETRA","S7512","C61131094001",140]
["FS7516","RAPIDES DU VAL DE LOIRE","S7521","C61131094001",150]
["FS7516","RAPIDES DU VAL DE LOIRE","S7521","C61131094002",160]
["FTDUN","LES CARS DUNOIS","S7521","C61131094001",170]
["FTDAR","TRANSPORTS DARBIER","S7521","C61131094002",180]
["FTFRA","LES CARS FRAIZY","S7521","C61131094002",190]
["FS7566","PAYS D'OC MOBILITES","S7527","C61131094000",200]
["FCDM","COURRIERS DU MIDI","S7527","C61131094000",210]
["F000837","TRANSPORT GRAND AVIGNON","S7532","C61131094000",220]
["FSU4202","VEOLIA TRANSPORTS VALENCE","S7533","C61131094049",230]
["F19017","SUD RHONE ALPES DEPLACEMENTS","S7533","C61131094000",240]
["FSI109","TD ISTRES","S7580","C61131094049",250]
["FS7613","CROLARD VOYAGES","S7615","C61131094049",260]
["FS7619","LES CARS D ORSAY","S7629","C61131094001",270]
["FSU051","LES COURRIERS AUTOMOBILES PICARDS","SI032","C61131094004",280]
["FSI070","VTP","SI032","C61131094004",290]
["FSU55019","CFTI EPINAL","SI047","C61131094049",300]
["FSU443705","STAO PL 49 CAA","SI068","C61131094004",310]
["F0000003","CORDIER VOYAGES","SI068","C61131094004",320]
["F000058","KEOLIS EURE & LOIR","SI101","C61131094001",330]
["F200009","TRANDEV SAVOIE","STAC","C6113109400020",340]
["FSU06304","CIE DE TRANSPORTS DU MORBIHAN","SU085","C61131094000",350]
["FSU392","SEMAAAS","SU4211","C61131094049",360]
["F00001","GRISEL","SU4462","C61131094004",370]
["FSU4436","VTNI","SU501","C61131094000",380]
["FS00040","SODETRAV","SU502","C61131094001",390]
["FSU554","TCC","SU55604","C61131094004",400]
["FPLANCH","CARS PLANCHE","SU565","C61131094000",410]
["F652","SVT","SU634","C61131094000",420]
["FF00101","ARRIAGA","SU043","C6113114220",430]
["FSU4210","TRANSDEV LOCATION DE VEHICULES","S7000","C65800094399",440]
["FSH001","VEOLIA TRANSDEV","S7000","C62283096900",450]
["FSH001","VEOLIA TRANSDEV","S7000","C62288096222",460]
["FSH001","VEOLIA TRANSDEV","S7000","C61320096650",470]
["FS7574","TRANSDATA","S7000","C61888096249",480]
["FSH001","VEOLIA TRANSDEV","S7000","C61888096249",490]
["F400032-92800","TOTAL MARKETING SERVICES","S7512","C60211094050",500]
["FS7000","TRANSDEV","S7516","C61351097298",510]
["F020002","TOTAL RAFFINAGE MARKETING","S7516","C60211094050",520]
["FS7000","TRANSDEV","S7526","C61351097210",530]
["FS7876","EQUIVAL","S7527","C61188096249",540]
["FR000404","GINOUVES","S7531","C60211094050",550]
["FS7000","TRANSDEV","S7531","C61351097298",560]
["F400032-92800","TOTAL MARKETING SERVICES","S7619","C60211094050",570]
[20152002,"TOTAL MARKETING SERVICES","S7718","C602111",580]
["FTOTAL","TOTAL RAFFINAGE MARKETING CARBURANT","S7751","C60211094050",590]
["FDIVERS","FDIVERS","SI022","C61188094118",600]
["FDIVERS","FDIVERS","SI022","C64111095000",610]
["FDIVERS","FDIVERS","SI022","C68112094409",620]
["FDIVERS","FDIVERS","SI022","C64510093008",630]
["FDIVERS","FDIVERS","SI023","C64111093000",640]
["F120059","TOTAL RAFFINAGE","SI049","C60211094050",650]
["FS7595","TRANSDEV PARIS EST","SI091","C62140095921",660]
["F220008","VEOLIA TRANSDEV CHY","STAC","C6218809302111",670]
["FR5016","TOTAL FRANCE","SU015","C321100",680]
["FSU4210","VTLV","SU023","C61351097298",690]
["F000794","CPA","SU051","C321100",700]
["FSU4210","VEOLIA TRANSPORT LOCATION VEHICULES","SU06801","C61351097210",710]
["F00025","SOTRADER","SU3040","C61188094167",720]
["FNATIXISL","NATIXIS LEASE","SU4210","C61351097210",730]
["FOSEO","BPI FRANCE (OSEO)","SU4210","C61351097210",740]
["FDCS","DCS","SU4210","C61351097210",750]
["FCMCIC","CM CIC BAIL","SU4210","C61351097210",760]
["FNATIOCREDIMURS","NATIOCREDIMURS","SU4210","C61351097210",770]
["FLIXXBAIL","LIXXBAIL","SU4210","C61351097210",780]
["FFRANFINANCE","FRANFINANCE","SU4210","C61351097210",790]
["FCAPITOLEFINANCE","CAPITOLE FINANCE - TOFINSO","SU4210","C61351097210",800]
["FACTEA","BAIL ACTEA","SU4210","C61351097210",810]
["F2220100","VTLV","SU4436","C61351097210",820]
["FRUB02","RUBIS TERMINAL CPA NEGOCE","SU501","C321100L03",830]
["FTOT001","TOTAL RAFFINAGE MARKETING","SU506","C60211094050",840]
["F400032-92800","TOTAL MARKETING SERVICES","SU59400","C60211094050",850]
["FSU673","NOUVELLE CPL","SU654","C61554094109",860]
["FT200","TOTAL","SU654","C60211094050",870]
["F0","Fournisseur reprise","SU446420","C321100",880]
["F0","Fournisseur reprise","SU446430","C207000X88",890]
["F0","Fournisseur reprise","SU446420","C267100X88",900]
["F0","Fournisseur reprise","SU446430","C267100X88",910]
["F0","Fournisseur reprise","SU446420","C217500X88",920]
["F0","Fournisseur reprise","SU446410","C64111093000",930]
["F0","Fournisseur reprise","SU446410","C207000X88",940]
["F0","Fournisseur reprise","SU446410","C207117X88",950]
["F0","Fournisseur reprise","SU446410","C61351097210",960]
["F0","Fournisseur reprise","SU446410","C213100X88",970]

{"sheet":"TCD","index":2,"n_rows":5,"n_cols":3,"rows_kept":5,"cut":false,"hidden":false,"merged":[]}
["Somme de SPEND","Étiquettes de colonnes"]
[null,"(vide)","Total général"]
["Étiquettes de lignes"]
["(vide)",47530,47530]
["Total général",47530,47530]

{"sheet":"RedLine","index":3,"n_rows":1,"n_cols":6,"rows_kept":1,"cut":false,"hidden":false,"merged":[]}
["Code Frs","Nom Frs","N° SU","Code CODA","SPEND","CONCAT"]

{"sheet":"TAB Frs","index":4,"n_rows":62,"n_cols":3,"rows_kept":62,"cut":false,"hidden":false,"merged":[]}
["Nom Frs","Fr Groupe","Intragroupe"]
["@LOCATION","@LOCATION","EXTERNE"]
["0 3 S","0 3 S","EXTERNE"]
["0REDUI - VEOLIA PROPRETE","VEOLIA PROPRETE","INTERNE"]
["1 & 1 INTERNET","1 & 1 INTERNET","EXTERNE"]
["1 & 1 INTERNET","1&1 INTERNET","EXTERNE"]
["1 K HOTEL","1 K HOTEL","EXTERNE"]
["1 PRINT","1 PRINT","EXTERNE"]
["1&1 INTERNET","1&1 INTERNET","EXTERNE"]
["10 EXPRESS /CALBERSON","GEODIS","EXTERNE"]
["1000 ET 1 PILES","1000 ET 1 PILES","EXTERNE"]
["1001 TELECOMMANDES","1001 TELECOMMANDES","EXTERNE"]
["101 SECURITE PRIVEE","101 SECURITE PRIVEE","EXTERNE"]
["1212 TRANSPORT","1212 TRANSPORT","EXTERNE"]
["123 ROULEMENTS","123 ROULEMENTS","EXTERNE"]
["136 AVENUE","136 AVENUE","EXTERNE"]
["15 MARCHES","15 MARCHES","EXTERNE"]
["15 MARCHES SAS","15 MARCHES","EXTERNE"]
["1961PROD","1961PROD","EXTERNE"]
["1ère AVENUE Val Sénart","1ère AVENUE Val Sénart","EXTERNE"]
["1ERE CLASSE","1ERE CLASSE","EXTERNE"]
["2 A-IMMOBILIER","2 A-IMMOBILIER","EXTERNE"]
["2 ALP CORDO","2 ALP CORDO","EXTERNE"]
["2 M HYGIENE SARL","2 M HYGIENE SARL","EXTERNE"]
["2 M MOBILIER ET MOUVEMENT","2 M MOBILIER ET MOUVEMENT","EXTERNE"]
["2 POTES AU FEU","2 POTES AU FEU","EXTERNE"]
["2 ST","2 ST","EXTERNE"]
["20 MINUTES","20 MINUTES","EXTERNE"]
["20 MINUTES FRANCE","20 MINUTES","EXTERNE"]
["2298763 ONTARIO INC","2298763 ONTARIO INC","EXTERNE"]
["2A PUBLICITE SARL","2A PUBLICITE SARL","EXTERNE"]
["2AB","2AB","EXTERNE"]
["2ABD","2ABD","EXTERNE"]
["2ABR74","2ABR74","EXTERNE"]
["2B BATIMENT & CONSEIL SARL","2B BATIMENT & CONSEIL SARL","EXTERNE"]
["2B BATIMENT ET CONSEIL SARL","2B BATIMENT & CONSEIL SARL","EXTERNE"]
["2B2P","2B2P","EXTERNE"]
["2B2P CONSEIL","2B2P","EXTERNE"]
["2B2PCONSEIL","2B2P","EXTERNE"]
["2C CONTINENTAL","2C CONTINENTAL","EXTERNE"]
["2DB COMMUNICATION","2DB COMMUNICATION","EXTERNE"]
["2GP","2GP","EXTERNE"]
["2J INNOV","2J INNOV","EXTERNE"]
["2LB","2LB","EXTERNE"]
["2LSI","2LSI","EXTERNE"]
["2M","2M MOBILIER &  MOUVEMENT","EXTERNE"]
["2M MOBILIER &  MOUVEMENT","2M MOBILIER &  MOUVEMENT","EXTERNE"]
["2M MOBILIER & MOUVEMENT","2M MOBILIER &  MOUVEMENT","EXTERNE"]
["2M MOBILIER ET MOUVEMENT","2M MOBILIER &  MOUVEMENT","EXTERNE"]
["2M MOBILIER&MOUVEMENT","2M MOBILIER &  MOUVEMENT","EXTERNE"]
["2MDS","2MDS","EXTERNE"]
["2RM","2RM","EXTERNE"]
["2S SIGNALISATION","2S SIGNALISATION","EXTERNE"]
["2S3V COMMUNICATION","2S3V COMMUNICATION","EXTERNE"]
["2TC TECHNOLOGIE","2TC TECHNOLOGIES","EXTERNE"]
["2TC TECHNOLOGIES","2TC TECHNOLOGIES","EXTERNE"]
["3 A E ACCESSIBILITE - MARCO","3 A E ACCESSIBILITE - MARCO","EXTERNE"]
["3 D CREATIONS","3 D CREATIONS","EXTERNE"]
["3 D FRANCE","3D FRANCE","EXTERNE"]
["3 E CONSULTANTS","3 E CONSULTANTS","EXTERNE"]
["3 F SERVICES","3 F SERVICES","EXTERNE"]
["3 S MARKETING","3 S MARKETING","EXTERNE"]

{"sheet":"TAB SU","index":5,"n_rows":27,"n_cols":7,"rows_kept":27,"cut":false,"hidden":false,"merged":[]}
["N° SU","Nom SU","Zone","Pays","Région","Pôle","N°-Nom SU"]
["SU3040"," VTSR (UM)","France","ZONE SUD","POLES REGIONAUX SUD","POLE OUTRE MER",{"$f":"A2&\"-\"&B2","v":"SU3040- VTSR (UM)"}]
["BTQ_ROANNE","BTQ_ROANNE","France","ZONE SUD","POLES REGIONAUX SUD","POLE RHONE ALPES AUVERGNE","BTQ_ROANNE-BTQ_ROANNE"]
["CGS","CARTRANS GIRONDE","France","ZONE NORD","SUD_OUEST_FR","CGS -CARTRANS GIRONDE_","CGS-CARTRANS GIRONDE"]
["DSP"," DSP","France","ZONE NORD","NORD_OUEST_FR","DSP - DSP_","DSP- DSP"]
["DSP533"," CALAIS OPALE BUS","France","ZONE NORD","NORD_OUEST_FR","DSP533 - CALAIS OPALE BUS_","DSP533- CALAIS OPALE BUS"]
["DSPSU50023"," VTU SEINE EURE","France","ZONE NORD","POLE REGIONAUX NORD","DSPSU50023 - VTU SEINE EURE_","DSPSU50023- VTU SEINE EURE"]
["S7000"," TRANSDEV SA","France","HOLDINGS","HOLDING 2","S7000 - TRANSDEV SA_","S7000- TRANSDEV SA"]
["S7163"," PROGETOURS","France","ZONE SUD","POLES REGIONAUX SUD","POLE AQUITAINE LIMOUSIN","S7163- PROGETOURS"]
["S7214"," AMV","France","ZONE ILE DE FRANCE","POLE REGIONAUX ILE DE France","POLE ILE DE France EST","S7214- AMV"]
["S7244"," Transdev DAUPHINE","France","ZONE SUD","POLES REGIONAUX SUD","POLE RHONE ALPES AUVERGNE","S7244- Transdev DAUPHINE"]
["S7245"," TRANSDEV Nord Est (UM)","France","ZONE NORD","POLE REGIONAUX NORD","POLE ALSACE LORRAINE","S7245- TRANSDEV Nord Est (UM)"]
["S7247"," TD Alsace (UM)","France","ZONE NORD","POLE REGIONAUX NORD","POLE ALSACE LORRAINE","S7247- TD Alsace (UM)"]
["S7502"," LORRAINE ","France","ZONE NORD","POLE REGIONAUX NORD","POLE ALSACE LORRAINE","S7502- LORRAINE "]
["S7503"," N'4 MOBILITES","France","ZONE ILE DE FRANCE","POLE REGIONAUX ILE DE France","POLE ILE DE France EST","S7503- N'4 MOBILITES"]
["S7505"," VEA","France","RESTE OLD ORGA","TOD","S7505 - VEA_","S7505- VEA"]
["S7507"," TAS","France","ZONE ILE DE FRANCE","ACTIVITES PISTES ILE DE France","BU TAS","S7507- TAS"]
["S7508"," STBC (UM)","France","ZONE ILE DE FRANCE","POLE REGIONAUX ILE DE France","POLE ILE DE France NORD","S7508- STBC (UM)"]
["S7510"," EUROPE AUTOCAR","France","ZONE ILE DE FRANCE","POLE REGIONAUX ILE DE France","POLE ILE DE France EST","S7510- EUROPE AUTOCAR"]
["S7511"," RAPIDES DE SAONE ET LOIRE (UM)","France","ZONE NORD","POLE REGIONAUX NORD","POLE BOURGOGNE CHAMPAGNE","S7511- RAPIDES DE SAONE ET LOIRE (UM)"]
["S7512"," CEAT","France","ZONE ILE DE FRANCE","POLE REGIONAUX ILE DE France","POLE ILE DE France SUD","S7512- CEAT"]
["S7514"," STA CHALONS (UM)","France","ZONE NORD","POLE REGIONAUX NORD","POLE BOURGOGNE CHAMPAGNE","S7514- STA CHALONS (UM)"]
["S7515"," TRANSDEV AUVERGNE (UM)","France","ZONE SUD","POLES REGIONAUX SUD","POLE RHONE ALPES AUVERGNE","S7515- TRANSDEV AUVERGNE (UM)"]
["S7516"," RVL (UM)","France","ZONE NORD","POLE REGIONAUX NORD","POLE CENTRE POITOU CHARENTES","S7516- RVL (UM)"]
["S7518"," RAPIDES DE BOURGOGNE (UM)","France","ZONE NORD","POLE REGIONAUX NORD","POLE BOURGOGNE CHAMPAGNE","S7518- RAPIDES DE BOURGOGNE (UM)"]
["S7519"," COURRIERS DE L'AUBE (UM)","France","ZONE NORD","POLE REGIONAUX NORD","POLE BOURGOGNE CHAMPAGNE","S7519- COURRIERS DE L'AUBE (UM)"]
["S7520"," AUXERROIS MOBILITES (UM)","France","ZONE NORD","POLE REGIONAUX NORD","POLE BOURGOGNE CHAMPAGNE","S7520- AUXERROIS MOBILITES (UM)"]

{"sheet":"TAB CAts2","index":6,"n_rows":25,"n_cols":8,"rows_kept":25,"cut":false,"hidden":false,"merged":[]}
["Code Comptable","Nom","Code Achat","Dom","Cat","/s Dom","Périmètre","Adressable"]
["C20810","Logiciels acquis",70300,"70300-Logiciels informatiques","7-Informatique et télécommunications","703-Logiciels informatiques","nc","Adressable"]
["C21550","Outillage industriel",10301,"10301-Outillage, petit outillage      ","1-Equipement, Matériels et fournitures d'exploitation","103-Outillage, petit équipement et fournitures","potentiel","Adressable"]
["C21710","Matériel de transport bus cars",30901,"30901-Achat - Bus & cars","3-Matériels et engins mobiles, pièces et ST","309-Bus & cars - Achat & location","nc","Adressable"]
["C21711","Matériel de transport velos",30201,"30201-Achat - Vélos et Motos","3-Matériels et engins mobiles, pièces et ST","302-Vélos et Motos","nc","Adressable"]
["C21712","Véhicules de service",30401,"30401-Achat véhicules de service","3-Matériels et engins mobiles, pièces et ST","304-Véhicules de service","nc","Adressable"]
["C21830","Matériel de bureau",60504,"60504-Location - Equipement de bureau    ","6-Achats généraux","605-Mobilier et équipement de bureau","potentiel","Adressable"]
["C21835","Matériel informatique",70201,"70201-Achat - Equipement informatique     ","7-Informatique et télécommunications","702-Matériel Informatique","potentiel","Adressable"]
["C21840","Mobilier",60501,"60501-Mobilier de bureau      ","6-Achats généraux","605-Mobilier et équipement de bureau","potentiel","Adressable"]
["C60214","Achats pneumatiques stockés",31301,"31301-Achats de pneumatiques      ","3-Matériels et engins mobiles, pièces et ST","313-Pneumatiques","potentiel","Adressable"]
["C60217","Achats petit outillage atelier stock",10301,"10301-Outillage, petit outillage      ","1-Equipement, Matériels et fournitures d'exploitation","103-Outillage, petit équipement et fournitures","potentiel","Adressable"]
["C60219","Achats habillement stockés",60200,"60200-Vêtements de travail      ","6-Achats généraux","602-Vêtements de travail","potentiel","Adressable"]
["C60611","Fourniture d'eau abonnée",80901,"80901-Eau        ","8-Bâtiments et facility management","809-Utilities","potentiel","Adressable"]
["C60612","Fourniture non stockée électricité",80902,"80902-Electricité Bâtiments       ","8-Bâtiments et facility management","809-Utilities","potentiel","Adressable"]
["C60615","Fourniture non stockée électr.tract.",40100,"40100-Electricité d'exploitation       ","4-Energie et consommables","401-Electricité d'exploitation","potentiel","Adressable"]
["C60632","Produits d'entretien",81000,"81000-Produits de nettoyage pour bâtiments et installations  ","8-Bâtiments et facility management","810-Produits de nettoyage","potentiel","Adressable"]
["C60633","Fournitures et petit outillage",10301,"10301-Outillage, petit outillage      ","1-Equipement, Matériels et fournitures d'exploitation","103-Outillage, petit équipement et fournitures","potentiel","Adressable"]
["C60640","Achat petit mobilier",60501,"60501-Mobilier de bureau      ","6-Achats généraux","605-Mobilier et équipement de bureau","potentiel","Adressable"]
["C60645","Fournitures de bureau",60401,"60401-Consommables de bureau      ","6-Achats généraux","604-Fournitures de bureau","potentiel","Adressable"]
["C60646","Achats imprimés bureau",61003,"61003-Reprographie","6-Achats généraux","610-Reprographie / édition","nc","Adressable"]
["C60647","Achats fournitures informatiques",60402,"60402-Consommables informatiques       ","6-Achats généraux","604-Fournitures de bureau","potentiel","Adressable"]
["C60650","Vêtements de travail",60200,"60200-Vêtements de travail      ","6-Achats généraux","602-Vêtements de travail","potentiel","Adressable"]
["C60683","Achat lubrifiant non stocké",40900,"40900-Lubrifiants        ","4-Energie et consommables","409-Lubrifiants","maitrisé à 100%","Adressable"]
["C60684","Achat pneumatiques non stockés",31301,"31301-Achats de pneumatiques      ","3-Matériels et engins mobiles, pièces et ST","313-Pneumatiques","potentiel","Adressable"]
["C61131","Sous traitance transport",21300,"21300-ST transport exploitation","2-ST industrielle, technique et de services","213-ST transport exploitation","nc","Adressable"]

{"sheet":"TAB CAts","index":7,"n_rows":36,"n_cols":6,"rows_kept":36,"cut":false,"hidden":false,"merged":[]}
["Code CODA","N°-Nom CAts","N°-Nom Dom","N°-Nom /s Dom","Périmètre","Adressable"]
["C6061206010","40100-Electricité d'exploitation       ","4-Energie et consommables","401-Electricité d'exploitation","potentiel","Adressable"]
["C6063206022","30402-Location - Véhicules de service    ","3-Matériels et engins mobiles, pièces et ST","304-Véhicules de service","potentiel","Adressable"]
["C6063206022","30902-Location - Bus & Cars    ","3-Matériels et engins mobiles, pièces et ST","309-Bus & Cars - Achat & Location","maitrisé à 100%","Adressable"]
["C6063206022","31003-Bus & Cars - Pièces    ","3-Matériels et engins mobiles, pièces et ST","310-Bus & Cars - Vitres","comparateur","Adressable"]
["C6063206022","50300-Consulting        ","5-Prestations intellectuelles","503-Conseil en organisation, management, stratégie, et études générales","potentiel","Adressable"]
["C6063206022","50802-Honoraires financiers hors CAC : audit, expertise, fiscaliste… ","5-Prestations intellectuelles","508-Prestations et services financiers","potentiel","Adressable"]
["C6063206022","60101-Travail temporaire pour l'Exploitation     ","6-Achats généraux","601-Travail temporaire","potentiel","Adressable"]
["C6063206022","60504-Location - Equipement de bureau    ","6-Achats généraux","605-Mobilier et équipement de bureau","potentiel","Adressable"]
["C6063206022","60505-Maintenance - Equipement de bureau    ","6-Achats généraux","605-Mobilier et équipement de bureau","potentiel","Adressable"]
["C6063206022","61106-Réception        ","6-Achats généraux","611-Espace de vie et restauration collective","potentiel","Adressable"]
["C6063206022","70101-Téléphonie mobile : abonnement, consommation, services   ","7-Informatique et télécommunications","701-Télécommunications","potentiel","Adressable"]
["C6063206022","70202-Location - Equipement informatique     ","7-Informatique et télécommunications","702-Matériel Informatique","potentiel","Adressable"]
["C6063206022","70503-Maintenance équipements informatiques      ","7-Informatique et télécommunications","705-Maintenance informatique","potentiel","Adressable"]
["C6063206022","80403-Maintenance bâtiments       ","8-Bâtiments et facility management","804-ST ou facility management","potentiel","Adressable"]
["C6063206022","80902-Electricité Bâtiments       ","8-Bâtiments et facility management","809-Utilities","potentiel","Adressable"]
["C6063206022","90400-Redevances d'exploitation       ","9-Taxes et redevances","904-Redevances d'exploitation","potentiel","Non Adressable"]
["C6063206022","90800-Redevances droits d'auteur      ","9-Taxes et redevances","908-Redevances droits d'auteurs","potentiel","Non Adressable"]
["C6063306223","10302-Petit équipement d'atelier et fournitures    ","1-Equipement, Matériels et fournitures d'exploitation","103-Outillage, petit équipement et fournitures","potentiel","Adressable"]
["C6063306223","21302-ST transport routier de voyageurs    ","2-ST industrielle, technique et de services","213-ST transport exploitation","potentiel","Non Adressable"]
["C6063306223","21900-ST Fabrication voyages      ","2-ST industrielle, technique et de services","219-ST fabrication voyages","potentiel","Non Adressable"]
["C6063306223","30402-Location - Véhicules de service    ","3-Matériels et engins mobiles, pièces et ST","304-Véhicules de service","potentiel","Adressable"]
["C6063306223","30902-Location - Bus & Cars    ","3-Matériels et engins mobiles, pièces et ST","309-Bus & Cars - Achat & Location","maitrisé à 100%","Adressable"]
["C6063306223","31104-Bus & Cars - ST Maintenance et réparation","3-Matériels et engins mobiles, pièces et ST","311-Bus & Cars - ST","potentiel","Adressable"]
["C6063306223","50802-Honoraires financiers hors CAC : audit, expertise, fiscaliste… ","5-Prestations intellectuelles","508-Prestations et services financiers","potentiel","Adressable"]
["C6063306223","50901-Formations        ","5-Prestations intellectuelles","509-Prestations RH","potentiel","Adressable"]
["C6063306223","51007-Sponsoring        ","5-Prestations intellectuelles","510-Marketing et communication","potentiel","Non Adressable"]
["C6063306223","60504-Location - Equipement de bureau    ","6-Achats généraux","605-Mobilier et équipement de bureau","potentiel","Adressable"]
["C6063306223","61106-Réception        ","6-Achats généraux","611-Espace de vie et restauration collective","potentiel","Adressable"]
["C6063306223","80201-Location bâtiments       ","8-Bâtiments et facility management","802-Location bâtiment et terrains","potentiel","Adressable"]
["C6063306223","80402-Gardiennage        ","8-Bâtiments et facility management","804-ST ou facility management","potentiel","Adressable"]
["C6063306223","80403-Maintenance bâtiments       ","8-Bâtiments et facility management","804-ST ou facility management","potentiel","Adressable"]
["C6063306223","90400-Redevances d'exploitation       ","9-Taxes et redevances","904-Redevances d'exploitation","potentiel","Non Adressable"]
["C6063306223","100000-Non Catégorisé","10-Non catégorisé","1000-Non catégorisé","potentiel","Adressable"]
["C6064006120","21301-ST affrètement moyens de transport    ","2-ST industrielle, technique et de services","213-ST transport exploitation","potentiel","Non Adressable"]
["C6064006120","30902-Location - Bus & Cars    ","3-Matériels et engins mobiles, pièces et ST","309-Bus & Cars - Achat & Location","maitrisé à 100%","Adressable"]

{"sheet":"TAB Contrats Fce","index":8,"n_rows":23,"n_cols":3,"rows_kept":23,"cut":false,"hidden":false,"merged":[]}
["Frs","Contrat","Adressé"]
["2M MOBILIER ET MOUVEMENT - BURONOMIC","Contrat","Adressé"]
["AD AUTODISTRIBUTION ","Contrat","Adressé"]
["ADECCO ","Contrat","Adressé"]
["ADPL COMPTOIR V.I","Contrat","Adressé"]
["AGS TRADUCTION - ALCATRAD GLOBAL SERVICES","Contrat","Adressé"]
["AKZO NOBEL","Contrat","Adressé"]
["APAVE","Contrat","Adressé"]
["ARKADIN FRANCE","Contrat","Adressé"]
["ATPS - LOCATLAS","Contrat","Adressé"]
["AUTOVISION PL","Contrat","Adressé"]
["AXIAL","Contrat","Adressé"]
["AXIANS","Contrat","Adressé"]
["BERNER","Contrat","Adressé"]
["BH SERVICE","Contrat","Adressé"]
["BUREAU VERITAS","Contrat","Adressé"]
["BUSYBEE","Contrat","Adressé"]
["CBM - CARS ET BUS MAINTENANCE","Contrat","Adressé"]
["CHRONOPOST","Contrat","Adressé"]
["CINQ SUR CINQ","Contrat","Adressé"]
["CITROEN","Contrat","Adressé"]
["COMPUTACENTER","Contrat","Adressé"]
["CONDAT LUBRIFIANTS","Contrat","Adressé"]

{"sheet":"TAB Contrats","index":9,"n_rows":18,"n_cols":3,"rows_kept":18,"cut":false,"hidden":false,"merged":[]}
["SU-CFrs","Contrat","Adressé"]
["S7718-1010101","Hors Contrat","Non Adressé"]
["S7718-1030901","Contrat","Adressé"]
["S7718-1031101","Hors Contrat","Non Adressé"]
["S7718-1031901","Hors Contrat","Non Adressé"]
["S7718-1032002","Hors Contrat","Non Adressé"]
["S7718-1061501","Hors Contrat","Non Adressé"]
["S7718-1120701","Hors Contrat","Non Adressé"]
["S7718-1121901","Contrat","Adressé"]
["S7718-1141701","Hors Contrat","Non Adressé"]
["S7718-1160101","Contrat","Adressé"]
["S7718-1161301","Hors Contrat","Non Adressé"]
["S7718-1161502","Hors Contrat","Non Adressé"]
["S7718-1162101","Hors Contrat","Non Adressé"]
["S7718-1180503","Hors Contrat","Non Adressé"]
["S7718-1191101","Hors Contrat","Non Adressé"]
["S7718-1192101","Hors Contrat","Non Adressé"]
["S7718-1201901","Contrat","Adressé"]

{"sheet":"RedLineTCD","index":10,"n_rows":0,"n_cols":0,"rows_kept":0,"cut":false,"hidden":false,"merged":[]}